fUSD/lending_fUSD_20240712
["ID","MTS","AMOUNT","RATE_DAILY","PERIOD"]
[331888932,1720817441951,-549.15,0.00013909,2]
[331888933,1720817441960,-500.0,0.00013909,2]
[331888935,1720817441969,-164.72232136,0.00013909,2]
[331888937,1720817441978,-637.82727121,0.00013909,2]
[331888939,1720817441987,-500.0,0.00013909,2]
[331888941,1720817441996,-230.37633291,0.00013909,2]
[331888943,1720817442005,-500.0,0.00013909,2]
[331888945,1720817442014,-500.0,0.00013909,2]
[331888947,1720817442023,-500.0,0.00013909,2]
[331888949,1720817442032,-500.0,0.00013909,2]
[331888951,1720817442042,-500.0,0.00013909,2]
[331888953,1720817442051,-500.0,0.00013909,2]
[331888955,1720817442060,-500.0,0.00013909,2]
[331888957,1720817442069,-500.0,0.00013909,2]
[331888959,1720817442079,-500.0,0.00013909,2]
[331888961,1720817442088,-500.0,0.00013909,2]
[331888963,1720817442097,-500.0,0.00013909,2]
[331888965,1720817442107,-500.0,0.00013909,2]
[331888967,1720817442116,-846.79,0.00013909,2]
[331888969,1720817442125,-500.0,0.00013909,2]
[331888971,1720817442134,-500.0,0.00013909,2]
[331888973,1720817442144,-500.0,0.00013909,2]
[331888985,1720817442252,-500.0,0.00013909,2]
[331888987,1720817442263,-562.58,0.00013909,2]
[331888989,1720817442272,-500.0,0.00013909,2]
[331888991,1720817442281,-500.0,0.00013909,2]
[331888993,1720817442290,-500.0,0.00013909,2]
[331888995,1720817442300,-708.78,0.00013909,2]
[331888997,1720817442310,-500.0,0.00013909,2]
[331888999,1720817442319,-822.97,0.00013909,2]
[331889001,1720817442329,-500.0,0.00013909,2]
[331889003,1720817442339,-500.0,0.00013909,2]
[331889005,1720817442348,-500.0,0.00013909,2]
[331889007,1720817442362,-504.53,0.00013909,2]
[331889009,1720817442371,-500.0,0.00013909,2]
[331889011,1720817442380,-500.0,0.00013909,2]
[331889013,1720817442391,-668.53,0.00013909,2]
[331889015,1720817442402,-636.31,0.00013909,2]
[331889017,1720817442411,-512.52,0.00013909,2]
[331889019,1720817442420,-500.0,0.00013909,2]
[331889021,1720817442429,-500.0,0.00013909,2]
[331889022,1720817442441,-500.0,0.00013909,2]
[331889024,1720817442450,-596.57855723,0.00013909,2]
[331889027,1720817442460,-500.0,0.00013909,2]
[331889028,1720817442470,-500.0,0.00013909,2]
[331889030,1720817442479,-500.0,0.00013909,2]
[331889032,1720817442488,-500.0,0.00013909,2]
[331889034,1720817442498,-500.0,0.00013909,2]
[331889036,1720817442507,-628.59,0.00013909,2]
[331889038,1720817442516,-500.0,0.00013909,2]
[331889040,1720817442526,-500.0,0.00013909,2]
[331889043,1720817442538,-500.0,0.00013909,2]
[331889047,1720817442548,-500.0,0.00013909,2]
[331889051,1720817442558,-15577.2813601,0.00013923,2]
[331889054,1720817442567,-31154.5627201,0.00013932,2]
[331889057,1720817442577,-151.0,0.00013932,2]
[331889060,1720817442586,-151.0,0.00013932,2]
[331889062,1720817442596,-219.502016,0.00013932,2]
[331889064,1720817442606,-500.0,0.00013932,2]
[331889066,1720817442616,-500.0,0.00013932,2]
[331889068,1720817442625,-500.0,0.00013933,2]
[331889070,1720817442634,-500.0,0.00013933,2]
[331889072,1720817442644,-500.0,0.00013933,2]
[331889074,1720817442654,-500.0,0.00013933,2]
[331889076,1720817442663,-500.0,0.00013933,2]
[331889078,1720817442673,-500.0,0.00013933,2]
[331889080,1720817442682,-500.0,0.00013933,2]
[331889081,1720817442692,-500.0,0.00013933,2]
[331889085,1720817442702,-500.0,0.00013933,2]
[331889087,1720817442711,-500.0,0.00013933,2]
[331889090,1720817442721,-500.0,0.00013933,2]
[331889092,1720817442731,-500.0,0.00013933,2]
[331889094,1720817442740,-500.0,0.00013933,2]
[331889098,1720817442750,-500.0,0.00013933,2]
[331889101,1720817442761,-500.0,0.00013933,2]
[331889103,1720817442770,-167.802296,0.00013933,2]
[331889106,1720817442779,-151.0,0.00013933,2]
[331889108,1720817442789,-151.0,0.00013933,2]
[331889110,1720817442798,-151.0,0.00013933,2]
[331889112,1720817442807,-186.490754,0.00013933,2]
[331889115,1720817442816,-150.0,0.00013935,2]
[331889118,1720817442825,-500.0,0.00013941,2]
[331889120,1720817442834,-500.0,0.00013941,2]
[331889122,1720817442844,-500.0,0.00013941,2]
[331889124,1720817442854,-500.0,0.00013941,2]
[331889126,1720817442864,-500.0,0.00013941,2]
[331889128,1720817442873,-500.0,0.00013941,2]
[331889130,1720817442882,-500.0,0.00013941,2]
[331889132,1720817442892,-753.33,0.00013941,2]
[331889134,1720817442901,-500.0,0.00013941,2]
[331889136,1720817442910,-500.0,0.00013941,2]
[331889138,1720817442920,-500.0,0.00013941,2]
[331889140,1720817442929,-500.0,0.00013941,2]
[331889142,1720817442938,-776.04,0.00013941,2]
[331889144,1720817442947,-500.0,0.00013941,2]
[331889146,1720817442957,-500.0,0.00013941,2]
[331889148,1720817442966,-500.0,0.00013941,2]
[331889150,1720817442975,-500.0,0.00013941,2]
[331889152,1720817442985,-500.0,0.00013942,2]
[331889154,1720817442994,-500.0,0.00013942,2]
[331889156,1720817443004,-500.0,0.00013942,2]
[331889158,1720817443013,-500.0,0.00013942,2]
[331889160,1720817443022,-500.0,0.00013942,2]
[331889162,1720817443032,-500.0,0.00013942,2]
[331889164,1720817443042,-525.49,0.00013942,2]
[331889166,1720817443052,-500.0,0.00013942,2]
[331889168,1720817443061,-500.0,0.00013942,2]
[331889170,1720817443071,-654.19,0.00013942,2]
[331889172,1720817443080,-635.44,0.00013942,2]
[331889174,1720817443089,-500.0,0.00013942,2]
[331889176,1720817443099,-510.21810355,0.00013942,2]
[331889178,1720817443108,-500.0,0.00013942,2]
[331889180,1720817443117,-150.0,0.00013942,2]
[331889182,1720817443126,-500.0,0.00013942,2]
[331889184,1720817443135,-657.0,0.00013942,2]
[331889186,1720817443146,-500.0,0.00013942,2]
[331889188,1720817443155,-502.94,0.00013942,2]
[331889190,1720817443165,-500.0,0.00013942,2]
[331889191,1720817443175,-500.0,0.00013942,2]
[331889192,1720817443184,-500.0,0.00013942,2]
[331889193,1720817443194,-672.04,0.00013942,2]
[331889194,1720817443203,-579.85,0.00013942,2]
[331889195,1720817443212,-500.0,0.00013942,2]
[331889196,1720817443221,-500.0,0.00013942,2]
[331889197,1720817443231,-500.0,0.00013942,2]
[331889198,1720817443240,-500.0,0.00013942,2]
[331889199,1720817443250,-669.63,0.00013942,2]
[331889200,1720817443259,-635.88,0.00013942,2]
[331889201,1720817443268,-151.0,0.00013942,2]
[331889202,1720817443278,-500.0,0.00013942,2]
[331889203,1720817443287,-500.0,0.00013942,2]
[331889204,1720817443297,-500.0,0.00013942,2]
[331889205,1720817443306,-500.0,0.00013942,2]
[331889206,1720817443316,-500.0,0.00013942,2]
[331889207,1720817443325,-500.0,0.00013942,2]
[331889208,1720817443334,-500.0,0.00013942,2]
[331889209,1720817443344,-700.52,0.00013942,2]
[331889210,1720817443354,-826.2,0.00013942,2]
[331889211,1720817443367,-500.0,0.00013942,2]
[331889212,1720817443376,-651.54,0.00013942,2]
[331889213,1720817443385,-500.0,0.00013942,2]
[331889214,1720817443396,-658.59,0.00013942,2]
[331889215,1720817443405,-500.0,0.00013942,2]
[331889217,1720817443415,-500.0,0.00013942,2]
[331889219,1720817443424,-500.0,0.00013942,2]
[331889221,1720817443434,-744.03,0.00013942,2]
[331889223,1720817443443,-676.29,0.00013942,2]
[331889225,1720817443453,-500.0,0.00013942,2]
[331889227,1720817443462,-500.0,0.00013942,2]
[331889229,1720817443471,-500.0,0.00013942,2]
[331889230,1720817443481,-500.0,0.00013942,2]
[331889231,1720817443490,-500.0,0.00013942,2]
[331889233,1720817443499,-500.0,0.00013942,2]
[331889234,1720817443508,-500.0,0.00013942,2]
[331889236,1720817443517,-500.0,0.00013942,2]
[331889238,1720817443527,-500.0,0.00013942,2]
[331889240,1720817443536,-518.14424242,0.00013942,2]
[331889242,1720817443545,-426.21787771,0.00013942,2]
[331889244,1720817443555,-500.0,0.00013942,2]
[331889245,1720817443563,-500.0,0.00013942,2]
[331889246,1720817443572,-500.0,0.00013942,2]
[331889247,1720817443583,-500.0,0.00013942,2]
[331889248,1720817443592,-500.0,0.00013942,2]
[331889249,1720817443601,-500.0,0.00013942,2]
[331889250,1720817443610,-540.48,0.00013942,2]
[331889251,1720817443619,-500.0,0.00013942,2]
[331889252,1720817443628,-500.0,0.00013942,2]
[331889253,1720817443637,-296.27726086,0.00013942,2]
[331889254,1720817443647,-644.1,0.00013942,2]
[331889255,1720817443656,-500.0,0.00013942,2]
[331889256,1720817443666,-500.0,0.00013942,2]
[331889257,1720817443675,-500.0,0.00013942,2]
[331889258,1720817443684,-500.0,0.00013942,2]
[331889259,1720817443693,-500.0,0.00013942,2]
[331889260,1720817443702,-500.0,0.00013942,2]
[331889261,1720817443712,-500.0,0.00013942,2]
[331889262,1720817443721,-854.78,0.00013942,2]
[331889263,1720817443730,-500.0,0.00013942,2]
[331889264,1720817443739,-514.45010631,0.00013942,2]
[331889265,1720817443748,-1210.82,0.00013942,2]
[331889266,1720817443757,-500.0,0.00013942,2]
[331889267,1720817443766,-500.0,0.00013942,2]
[331889268,1720817443775,-500.0,0.00013942,2]
[331889269,1720817443784,-500.0,0.00013942,2]
[331889270,1720817443793,-890.99,0.00013942,2]
[331889271,1720817443802,-610.41,0.00013942,2]
[331889272,1720817443811,-850.32,0.00013942,2]
[331889273,1720817443820,-500.0,0.00013942,2]
[331889274,1720817443830,-500.0,0.00013942,2]
[331889275,1720817443839,-565.8,0.00013942,2]
[331889276,1720817443848,-500.0,0.00013942,2]
[331889277,1720817443857,-500.0,0.00013942,2]
[331889278,1720817443866,-500.0,0.00013942,2]
[331889279,1720817443875,-500.0,0.00013942,2]
[331889280,1720817443884,-500.0,0.00013942,2]
[331889281,1720817443895,-553.25,0.00013942,2]
[331889282,1720817443904,-500.0,0.00013942,2]
[331889283,1720817444004,-500.0,0.00013942,2]
[331889284,1720817444013,-500.0,0.00013942,2]
[331889285,1720817444023,-500.0,0.00013942,2]
[331889286,1720817444032,-500.0,0.00013942,2]
[331889287,1720817444041,-500.0,0.00013942,2]
[331889288,1720817444050,-1045.57,0.00013942,2]
[331889289,1720817444059,-1566.45,0.00013942,2]
[331889290,1720817444069,-460.9925071,0.00013942,2]
[331889291,1720817444078,-806.16,0.00013942,2]
[331889292,1720817444087,-701.21,0.00013942,2]
[331889293,1720817444096,-500.0,0.00013942,2]
[331889294,1720817444105,-500.0,0.00013942,2]
[331889295,1720817444114,-500.0,0.00013942,2]
[331889297,1720817444123,-500.0,0.00013942,2]
[331889299,1720817444132,-500.0,0.00013942,2]
[331889301,1720817444142,-500.0,0.00013942,2]
[331889303,1720817444151,-291.447783,0.00013942,2]
[331889304,1720817444160,-594.30703154,0.00013942,2]
[331889305,1720817444169,-500.0,0.00013942,2]
[331889306,1720817444178,-500.0,0.00013942,2]
[331889307,1720817444187,-587.67,0.00013942,2]
[331889308,1720817444196,-500.0,0.00013942,2]
[331889309,1720817444205,-500.0,0.00013942,2]
[331889310,1720817444214,-500.0,0.00013942,2]
[331889311,1720817444223,-278.03865538,0.00013942,2]
[331889312,1720817444232,-500.0,0.00013942,2]
[331889313,1720817444241,-500.0,0.00013942,2]
[331889314,1720817444250,-500.0,0.00013942,2]
[331889315,1720817444260,-500.0,0.00013942,2]
[331889316,1720817444269,-500.0,0.00013942,2]
[331889317,1720817444278,-525.58,0.00013942,2]
[331889318,1720817444287,-547.63,0.00013942,2]
[331889319,1720817444297,-500.0,0.00013942,2]
[331889320,1720817444306,-500.0,0.00013942,2]
[331889321,1720817444315,-152.84222,0.00013942,2]
[331889322,1720817444323,-4270.02,0.00013942,2]
[331889323,1720817444333,-152.84222,0.00013942,2]
[331889324,1720817444344,-511.16,0.00013942,2]
[331889325,1720817444355,-806.36,0.00013942,2]
[331889326,1720817444364,-500.0,0.00013942,2]
[331889327,1720817444374,-500.0,0.00013942,2]
[331889328,1720817444383,-879.21,0.00013942,2]
[331889329,1720817444393,-500.0,0.00013942,2]
[331889330,1720817444402,-838.86,0.00013942,2]
[331889331,1720817444411,-500.0,0.00013942,2]
[331889332,1720817444423,-500.0,0.00013942,2]
[331889333,1720817444434,-500.0,0.00013942,2]
[331889334,1720817444443,-500.0,0.00013942,2]
[331889335,1720817444452,-151.0,0.00013948,2]
[331889336,1720817444461,-151.0,0.00013948,2]
[331889337,1720817444470,-229.942969,0.00013948,2]
[331889338,1720817444479,-15577.2813601,0.00013949,2]
[331889339,1720817444488,-573.497,0.00013953,2]
[331889340,1720817444496,-152.0,0.00013953,2]
[331889341,1720817444505,-151.718,0.00013953,2]
[331889342,1720817444514,-264.261,0.00013953,2]
[331889343,1720817444523,-151.0,0.00013954,2]
[331889344,1720817444532,-151.0,0.00013954,2]
[331889345,1720817444541,-151.0,0.00013954,2]
[331889346,1720817444550,-31154.5627201,0.00013954,2]
[331889347,1720817444559,-151.0,0.00013958,2]
[331889348,1720817444567,-151.0,0.00013959,2]
[331889349,1720817444576,-151.0,0.00013959,2]
[331889350,1720817444585,-804.76,0.00013959,2]
[331889351,1720817444594,-151.0,0.00013959,2]
[331889352,1720817444603,-500.0,0.00013959,2]
[331889353,1720817444612,-500.0,0.00013959,2]
[331889354,1720817444621,-563.83,0.00013959,2]
[331889355,1720817444630,-620.9,0.00013959,2]
[331889356,1720817444639,-760.99,0.00013959,2]
[331889357,1720817444649,-691.72,0.00013959,2]
[331889358,1720817444658,-500.0,0.00013959,2]
[331889359,1720817444667,-804.41,0.00013959,2]
[331889360,1720817444676,-752.33,0.00013959,2]
[331889361,1720817444685,-754.14,0.00013959,2]
[331889362,1720817444694,-500.0,0.00013959,2]
[331889363,1720817444703,-562.29,0.00013959,2]
[331889364,1720817444713,-500.0,0.00013959,2]
[331889365,1720817444722,-500.0,0.00013959,2]
[331889366,1720817444731,-422.43105701,0.00013964,2]
[331889367,1720817444740,-500.0,0.00013964,2]
[331889368,1720817444749,-500.0,0.00013964,2]
[331889369,1720817444759,-500.0,0.00013964,2]
[331889370,1720817444768,-500.0,0.00013964,2]
[331889371,1720817444777,-500.0,0.00013964,2]
[331889372,1720817444786,-500.0,0.00013964,2]
[331889373,1720817444795,-500.0,0.00013964,2]
[331889374,1720817444804,-500.0,0.00013964,2]
[331889375,1720817444813,-500.0,0.00013964,2]
[331889376,1720817444821,-500.0,0.00013964,2]
[331889377,1720817444830,-500.0,0.00013964,2]
[331889378,1720817444839,-500.0,0.00013964,2]
[331889379,1720817444848,-500.0,0.00013964,2]
[331889380,1720817444857,-500.0,0.00013964,2]
[331889381,1720817444865,-500.0,0.00013964,2]
[331889382,1720817444874,-500.0,0.00013964,2]
[331889383,1720817444883,-500.0,0.00013964,2]
[331889384,1720817444893,-646.88,0.00013964,2]
[331889385,1720817444905,-500.0,0.00013964,2]
[331889386,1720817444915,-500.0,0.00013964,2]
[331889387,1720817444923,-500.0,0.00013964,2]
[331889388,1720817444933,-306.02,0.00013964,2]
[331889389,1720817444942,-500.0,0.00013964,2]
[331889390,1720817444951,-500.0,0.00013964,2]
[331889391,1720817444960,-500.0,0.00013964,2]
[331889392,1720817444970,-500.0,0.00013964,2]
[331889393,1720817444979,-500.0,0.00013964,2]
[331889394,1720817444988,-500.0,0.00013964,2]
[331889395,1720817444997,-500.0,0.00013964,2]
[331889396,1720817445007,-500.0,0.00013964,2]
[331889397,1720817445016,-500.0,0.00013964,2]
[331889398,1720817445025,-500.0,0.00013964,2]
[331889399,1720817445034,-500.0,0.00013964,2]
[331889400,1720817445043,-500.0,0.00013964,2]
[331889401,1720817445053,-692.8,0.00013964,2]
[331889402,1720817445062,-500.0,0.00013964,2]
[331889403,1720817445072,-507.68,0.00013964,2]
[331889404,1720817445081,-500.0,0.00013964,2]
[331889405,1720817445090,-500.0,0.00013964,2]
[331889406,1720817445100,-794.16,0.00013964,2]
[331889407,1720817445109,-502.19,0.00013964,2]
[331889408,1720817445118,-500.0,0.00013964,2]
[331889409,1720817445128,-500.0,0.00013964,2]
[331889410,1720817445137,-500.0,0.00013964,2]
[331889411,1720817445147,-464.4,0.00013964,2]
[331889412,1720817445156,-500.0,0.00013964,2]
[331889413,1720817445166,-544.07,0.00013964,2]
[331889414,1720817445175,-500.0,0.00013964,2]
[331889415,1720817445184,-773.2,0.00013964,2]
[331889416,1720817445194,-500.0,0.00013964,2]
[331889417,1720817445203,-500.0,0.00013964,2]
[331889418,1720817445212,-533.83,0.00013964,2]
[331889419,1720817445221,-500.0,0.00013964,2]
[331889420,1720817445231,-500.0,0.00013964,2]
[331889421,1720817445240,-500.0,0.00013964,2]
[331889422,1720817445249,-500.0,0.00013964,2]
[331889423,1720817445259,-643.97,0.00013964,2]
[331889424,1720817445268,-886.23,0.00013964,2]
[331889425,1720817445278,-597.64,0.00013964,2]
[331889426,1720817445287,-500.0,0.00013964,2]
[331889427,1720817445297,-269.84582206,0.00013964,2]
[331889428,1720817445306,-672.17,0.00013964,2]
[331889429,1720817445315,-151.0,0.00013964,2]
[331889430,1720817445325,-151.0,0.00013964,2]
[331889431,1720817445335,-529.87,0.00013964,2]
[331889432,1720817445344,-500.0,0.00013964,2]
[331889433,1720817445355,-500.0,0.00013964,2]
[331889434,1720817445368,-500.0,0.00013964,2]
[331889435,1720817445377,-151.0,0.00013964,2]
[331889436,1720817445387,-500.0,0.00013964,2]
[331889437,1720817445397,-151.0,0.00013964,2]
[331889438,1720817445407,-500.0,0.00013964,2]
[331889439,1720817445417,-773.08,0.00013964,2]
[331889440,1720817445427,-500.0,0.00013964,2]
[331889441,1720817445439,-500.0,0.00013964,2]
[331889442,1720817445449,-505.76,0.00013964,2]
[331889443,1720817445458,-500.0,0.00013964,2]
[331889444,1720817445468,-500.0,0.00013964,2]
[331889445,1720817445478,-500.0,0.00013964,2]
[331889446,1720817445487,-500.0,0.00013964,2]
[331889447,1720817445497,-523.29,0.00013964,2]
[331889448,1720817445506,-500.0,0.00013964,2]
[331889449,1720817445609,-598.67,0.00013964,2]
[331889450,1720817445620,-500.0,0.00013964,2]
[331889451,1720817445631,-500.0,0.00013964,2]
[331889452,1720817445640,-500.0,0.00013964,2]
[331889453,1720817445650,-725.7,0.00013964,2]
[331889454,1720817445660,-500.0,0.00013964,2]
[331889455,1720817445669,-500.0,0.00013964,2]
[331889456,1720817445678,-515.59,0.00013964,2]
[331889457,1720817445688,-151.0,0.00013964,2]
[331889458,1720817445697,-500.0,0.00013964,2]
[331889459,1720817445706,-500.0,0.00013964,2]
[331889460,1720817445715,-500.0,0.00013964,2]
[331889461,1720817445724,-500.0,0.00013964,2]
[331889462,1720817445734,-773.35,0.00013964,2]
[331889463,1720817445744,-500.0,0.00013964,2]
[331889464,1720817445753,-500.0,0.00013964,2]
[331889465,1720817445763,-500.0,0.00013964,2]
[331889466,1720817445772,-500.0,0.00013964,2]
[331889467,1720817445781,-500.0,0.00013964,2]
[331889468,1720817445791,-531.04,0.00013964,2]
[331889469,1720817445800,-500.0,0.00013964,2]
[331889470,1720817445810,-546.56312412,0.00013964,2]
[331889471,1720817445820,-500.0,0.00013964,2]
[331889472,1720817445829,-500.0,0.00013964,2]
[331889473,1720817445839,-500.0,0.00013964,2]
[331889475,1720817445848,-500.0,0.00013964,2]
[331889477,1720817445858,-549.15,0.00013964,2]
[331889478,1720817445867,-500.0,0.00013964,2]
[331889480,1720817445877,-500.0,0.00013964,2]
[331889482,1720817445886,-500.0,0.00013964,2]
[331889484,1720817445897,-500.0,0.00013964,2]
[331889486,1720817445906,-500.0,0.00013964,2]
[331889488,1720817445916,-500.0,0.00013964,2]
[331889490,1720817445925,-500.0,0.00013964,2]
[331889492,1720817445934,-500.0,0.00013964,2]
[331889494,1720817445943,-500.0,0.00013964,2]
[331889496,1720817445952,-500.0,0.00013964,2]
[331889498,1720817445961,-151.0,0.00013964,2]
[331889499,1720817445970,-500.0,0.00013964,2]
[331889501,1720817445980,-200.210932,0.00013964,2]
[331889503,1720817445990,-500.0,0.00013964,2]
[331889504,1720817446000,-500.0,0.00013964,2]
[331889505,1720817446010,-500.0,0.00013964,2]
[331889506,1720817446020,-846.79,0.00013964,2]
[331889507,1720817446029,-500.0,0.00013964,2]
[331889509,1720817446039,-500.0,0.00013964,2]
[331889511,1720817446049,-500.0,0.00013964,2]
[331889513,1720817446058,-500.0,0.00013964,2]
[331889515,1720817446067,-562.58,0.00013964,2]
[331889517,1720817446077,-500.0,0.00013964,2]
[331889519,1720817446087,-500.0,0.00013964,2]
[331889521,1720817446096,-151.0,0.00013964,2]
[331889523,1720817446105,-500.0,0.00013964,2]
[331889525,1720817446114,-250.463668,0.00013964,2]
[331889527,1720817446123,-708.78,0.00013964,2]
[331889529,1720817446132,-151.0,0.00013964,2]
[331889531,1720817446143,-500.0,0.00013964,2]
[331889533,1720817446153,-822.97,0.00013964,2]
[331889534,1720817446162,-500.0,0.00013964,2]
[331889536,1720817446171,-303.71725059,0.00013964,2]
[331889538,1720817446181,-500.0,0.00013964,2]
[331889539,1720817446191,-504.53,0.00013964,2]
[331889541,1720817446201,-500.0,0.00013964,2]
[331889542,1720817446210,-500.0,0.00013964,2]
[331889543,1720817446220,-668.53,0.00013964,2]
[331889544,1720817446229,-636.31,0.00013964,2]
[331889545,1720817446239,-512.52,0.00013964,2]
[331889546,1720817446249,-500.0,0.00013964,2]
[331889547,1720817446258,-500.0,0.00013964,2]
[331889548,1720817446267,-500.0,0.00013964,2]
[331889549,1720817446277,-500.0,0.00013964,2]
[331889550,1720817446286,-500.0,0.00013964,2]
[331889551,1720817446296,-500.0,0.00013964,2]
[331889552,1720817446305,-500.0,0.00013964,2]
[331889553,1720817446315,-500.0,0.00013964,2]
[331889554,1720817446325,-628.59,0.00013964,2]
[331889555,1720817446334,-500.0,0.00013964,2]
[331889556,1720817446343,-182.88,0.00013964,2]
[331889557,1720817446356,-500.0,0.00013964,2]
[331889558,1720817446365,-500.0,0.00013964,2]
[331889559,1720817446374,-151.0,0.0001397,2]
[331889560,1720817446383,-151.0,0.0001397,2]
[331889561,1720817446394,-1196.657965,0.00013973,2]
[331889562,1720817446403,-15577.2813601,0.00013978,2]
[331889563,1720817446413,-151.0,0.00013979,2]
[331889564,1720817446423,-151.0,0.00013979,2]
[331889565,1720817446432,-151.0,0.00013979,2]
[331889566,1720817446444,-268.665504,0.00013979,2]
[331889567,1720817446453,-151.0,0.00013979,2]
[331889568,1720817446462,-151.0,0.00013979,2]
[331889569,1720817446471,-151.0,0.00013979,2]
[331889570,1720817446481,-151.0,0.00013979,2]
[331889571,1720817446490,-151.0,0.00013979,2]
[331889572,1720817446499,-151.0,0.00013979,2]
[331889573,1720817446509,-947.0,0.00013979,2]
[331889574,1720817446518,-152.84222,0.00013985,2]
[331889575,1720817446527,-152.84222,0.00013985,2]
[331889576,1720817446536,-15577.2813601,0.00013985,2]
[331889577,1720817446545,-31154.5627201,0.00013986,2]
[331889578,1720817446554,-500.0,0.00013986,2]
[331889579,1720817446563,-500.0,0.00013986,2]
[331889580,1720817446572,-500.0,0.00013988,2]
[331889581,1720817446581,-500.0,0.00013988,2]
[331889582,1720817446590,-500.0,0.00013988,2]
[331889583,1720817446599,-500.0,0.00013988,2]
[331889584,1720817446608,-500.0,0.00013988,2]
[331889585,1720817446617,-173.01486722,0.00013988,2]
[331889586,1720817446626,-500.0,0.00013988,2]
[331889587,1720817446635,-500.0,0.00013988,2]
[331889589,1720817446646,-500.0,0.00013988,2]
[331889591,1720817446656,-500.0,0.00013988,2]
[331889593,1720817446665,-500.0,0.00013988,2]
[331889595,1720817446675,-500.0,0.00013988,2]
[331889597,1720817446684,-500.0,0.00013988,2]
[331889599,1720817446693,-500.0,0.00013988,2]
[331889601,1720817446703,-500.0,0.00013988,2]
[331889602,1720817446712,-151.0,0.00013988,2]
[331889603,1720817446722,-15577.2813601,0.0001399,2]
[331889604,1720817446731,-2250.0,0.0001399,2]
[331889605,1720817446740,-151.0,0.0001399,2]
[331889606,1720817446750,-151.0,0.0001399,2]
[331889607,1720817446760,-151.0,0.0001399,2]
[331889608,1720817446770,-151.0,0.0001399,2]
[331889609,1720817446781,-285.474888,0.0001399,2]
[331889610,1720817446791,-22796.5612392,0.00013995,2]
[331889611,1720817446802,-151.0,0.00013995,2]
[331889612,1720817446812,-151.0,0.00013995,2]
[331889613,1720817446822,-151.0,0.00013995,2]
[331889614,1720817446832,-151.0,0.00013995,2]
[331889615,1720817446842,-151.0,0.00013995,2]
[331889616,1720817446852,-151.0,0.00013995,2]
[331889617,1720817446863,-500.0,0.00013996,2]
[331889618,1720817446873,-500.0,0.00013996,2]
[331889619,1720817446884,-500.0,0.00013996,2]
[331889620,1720817446895,-500.0,0.00013996,2]
[331889621,1720817446905,-500.0,0.00013996,2]
[331889622,1720817446914,-500.0,0.00013996,2]
[331889623,1720817446923,-525.49,0.00013996,2]
[331889624,1720817446934,-500.0,0.00013996,2]
[331889625,1720817446943,-500.0,0.00013996,2]
[331889626,1720817446952,-654.19,0.00013996,2]